[Event "40th Cappelle Open 2024"]
[Site "Cappelle-la-Grande"]
[Date "2024.03.07"]
[Round "8.12"]
[White "Vlachos, Anatole"]
[Black "Karthikeyan, P.."]
[Result "1-0"]
[ECO "B40"]
[WhiteElo "2479"]
[BlackElo "2306"]
[Annotator "TA"]
[PlyCount "81"]
[EventDate "2024.03.02"]
[EventType "swiss"]
[EventCountry "FRA"]
[SourceTitle "playchess.com"]
[Source "ChessBase"]
[SourceQuality "1"]
[TimeControl "40/5400+30:1800+30"]

{[%evp 9,81,0,14,6,14,14,19,17,14,17,25,19,29,3,17,-4,0,7,76,76,54,0,151,129,193,173,308,284,277,315,308,310,223,222,232,233,230,227,235,216,316,301,292,106,89,84,101,53,445,451,447,431,602,470,450,220,275,245,238,248,281,308,417,275,643,637,636,544,639,635,624,616,608,585]} 1. e4 {[%emt 0:00:03]} c5 {[%emt 0:03:33]} 2. Nf3 {[%emt 0:00:08]} e6 {[%emt 0:00:35]} 3. b3 {[%emt 0:00:02]} b6 {[%emt 0:01:59]} 4. d4 {[%emt 0:00:03]} cxd4 {[%emt 0:01:23]} 5. Nxd4 {[%emt 0:00:03]} Bb7 {[%emt 0:00:46]} 6. Nd2 {[%emt 0:00:04]} a6 {[%emt 0:07:41]} 7. Bb2 {[%emt 0:00:38]} Qc7 {[%emt 0:00:29]} 8. Bd3 {[%emt 0:02:04] The position is equal.} d6 {[%emt 0:02:58]} 9. Qe2 {[%emt 0:02:06]} Nd7 {[%emt 0:05:26]} 10. O-O-O {[%emt 0:00:04]} Nc5 {[%emt 0:01:06]} 11. g4 {[%emt 0:01:42]} Ne7 {[%emt 0:01:43]} 12. Kb1 {[%emt 0:08:30]} Ng6 {[%emt 0:00:50]} 13. Qe3 {[%emt 0:00:19]} Nxd3 {[%emt 0:04:33]} (13... d5 $11) 14. cxd3 $16 {[%emt 0:00:06]} d5 {[%emt 0:13:25] [#]} 15. Nf5 {[%emt 0:00:07]} f6 $2 {[%emt 0:03:11]} (15... exf5 $11 16. exf5+ Ne7) 16. Rc1 {[%emt 0:01:26]} Qd8 {[%emt 0:05:55]} (16... Qd7 $16) 17. g5 {[%emt 0:14:19][%cal Og5f6]} Kf7 {[%emt 0:04:09]} ({Don't blunder} 17... dxe4 $2 18. Nxe4 Ne5 19. Nxg7+ Bxg7 20. gxf6 Bxe4 21. fxg7 (21. Qxe4 Qxd3+ 22. Qxd3 Nxd3 $18) 21... Qxd3+ 22. Qxd3 (22. Ka1 Rg8 $18) 22... Bxd3+ 23. Ka1 $18) (17... Rc8 $142) 18. gxf6 $18 {[%emt 0:01:00]} gxf6 {[%emt 0:00:18]} (18... exf5 $2 {perishes.} 19. exf5 Bc8 20. fxg7 (20. fxg6+ hxg6 21. fxg7 Rh5 $18) 20... Bxg7 21. fxg6+ hxg6 22. Qf4+ Kg8 23. Rc7 $18) 19. Nh6+ {[%emt 0:00:24]} Bxh6 {[%emt 0:00:30]} 20. Qxh6 {[%emt 0:00:02][%cal Oe4e5] e5! would now be deadly.} Rc8 {[%emt 0:08:28]} 21. h4 {[%emt 0:16:24]} e5 {[%emt 0:06:41]} 22. Rxc8 {[%emt 0:06:47]} Bxc8 {[%emt 0:00:42]} 23. Rg1 {[%emt 0:02:18]} Qf8 {[%emt 0:01:46]} 24. Qh5 {[%emt 0:00:01] aiming for f4.} dxe4 {[%emt 0:04:57]} (24... Qd8 $142 25. d4 dxe4) 25. Nxe4 {[%emt 0:01:33]} Qd8 {[%emt 0:00:38]} 26. Kc2 {[%emt 0:08:07]} (26. Rd1 $18 {and White stays clearly on top.}) 26... Bb7 $16 {[%emt 0:02:36] [#]} 27. f4 $1 {[%emt 0:00:49] Hoping for f5. Some like it hot. White has more active pieces.} Bxe4 {[%emt 0:04:41]} 28. dxe4 {[%emt 0:00:16][%cal Bd3e4,Be4e5,Be5e6][%mdl 32]} Qa8 $2 {[%emt 0:01:22][%mdl 8192] Black cannot hold the game after this.} (28... exf4 $14 29. Bc3 Qe8) 29. Re1 $18 {[%emt 0:02:49]} exf4 {[%emt 0:00:41]} 30. e5 {[%emt 0:03:33]} Qc8+ {[%emt 0:06:17]} 31. Bc3 {[%emt 0:04:10]} Qc5 {[%emt 0:01:43]} 32. Qf5 {[%emt 0:00:25]} (32. Re2 $142 Qb5 33. a4) 32... Rc8 {[%emt 0:03:25]} 33. Qxf6+ {[%emt 0:00:05]} Ke8 {[%emt 0:00:54]} 34. e6 {[%emt 0:00:01]} Rc7 {[%emt 0:01:35] Dodges Qf7+} 35. Rd1 {[%emt 0:05:00][%csl Gf6][%cal Rd1d8]} Re7 {[%emt 0:00:18]} 36. Rd4 {[%emt 0:02:51] Black must now prevent Rc4.} Qh5 $2 {[%emt 0:00:34]} (36... Qc6 37. h5 Nf8 38. Rxf4 Nxe6) 37. Bb4 {[%emt 0:02:59] White is clearly winning.} Qe2+ {[%emt 0:00:15]} 38. Kb1 {[%emt 0:00:29]} Qxe6 {[%emt 0:00:20]} 39. Bxe7 {[%emt 0:00:22][%csl Ge7,Gf6][%cal Rd4d8]} Qe1+ {[%emt 0:00:36]} 40. Kb2 {[%emt 0:00:23][%csl Ge7,Gf6][%cal Rd4d8]} Qe2+ {[%emt 0:00:33]} 41. Ka3 {[%emt 0:32:08] Weighted Error Value: White=0.32/Black=0.58.  Loses game:     	---       	Black=1      Missed win:     	White=1     	---        Mistake:       	White=1     	Black=6      Inaccurate:     	White=3     	Black=2      OK:         	White=6     	Black=8      Best:        	White=8     	Black=6} 1-0

[Event "40th Cappelle Open 2024"]
[Site "Cappelle-la-Grande"]
[Date "2024.03.07"]
[Round "8.13"]
[White "Mirimanian, Hayk"]
[Black "Duboue, Peio"]
[Result "0-1"]
[ECO "B12"]
[WhiteElo "2283"]
[BlackElo "2454"]
[Annotator "TA"]
[PlyCount "50"]
[EventDate "2024.03.02"]
[EventType "swiss"]
[EventCountry "FRA"]
[SourceTitle "playchess.com"]
[Source "ChessBase"]
[SourceQuality "1"]
[TimeControl "40/5400+30:1800+30"]

{[%evp 9,50,10,10,-2,0,-60,-58,-69,-78,-66,-69,-184,-185,-335,-344,-335,-341,-311,-345,-475,-481,-440,-454,-562,-568,-760,-589,-606,-603,-816,-568,-562,-567,-641,-668,-844,-784,-975,-957,-909,-863,-1165,-1150]} 1. e4 {[%emt 0:00:03]} c6 {[%emt 0:00:06]} 2. d4 {[%emt 0:00:17]} d5 {[%emt 0:00:05]} 3. e5 {[%emt 0:00:45]} c5 {[%emt 0:00:05]} 4. dxc5 {[%emt 0:00:03]} e6 {[%emt 0:00:05]} 5. Be3 {[%emt 0:03:16]} Nd7 {[%emt 0:00:34][%csl LRc5,LRe5]} 6. Bb5 {[%emt 0:21:43]} Ne7 {[%emt 0:00:07]} 7. f4 {[%emt 0:02:15]} (7. c3 $11) 7... Nf5 $1 $15 {[%emt 0:05:19][%mdl 1024] Black has compensation.} 8. Bf2 {[%emt 0:01:16] Black is slightly better.} Qa5+ {[%emt 0:03:43]} 9. Nc3 {[%emt 0:00:07]} a6 {[%emt 0:08:50]} 10. g4 {[%emt 0:15:35] [#]} (10. Bf1 $15) 10... d4 $1 $19 {[%emt 0:09:56]} (10... axb5 11. gxf5 Nxc5 12. a4 $17) 11. Bxd4 {[%emt 0:15:45]} (11. Be2 $142 dxc3 12. b4 Qxb4 13. gxf5 Nxc5 (13... Bxc5 14. Bxc5 Nxc5 15. Qd6 $17) (13... Qxf4 $2 14. fxe6 Nxc5 15. Nh3 $19) 14. Qd4 Qxd4 15. Bxd4) 11... Nxd4 {[%emt 0:00:53]} (11... axb5 12. gxf5 Nxc5 13. f6 gxf6 (13... b4 14. fxg7 Bxg7 15. Nb1 $15) 14. Nf3 $11) 12. Qxd4 {[%emt 0:00:25]} (12. Bxd7+ Bxd7 13. Qxd4 Bxc5 $19) 12... axb5 {[%emt 0:02:25]} 13. b4 {[%emt 0:00:01]} Qc7 {[%emt 0:00:53] White must now prevent ...b6.} 14. Qe4 {[%emt 0:22:55] [#]} Nxc5 $1 {[%emt 0:05:53][%mdl 512] Black is clearly winning.} 15. bxc5 {[%emt 0:04:16]} Bd7 {[%emt 0:00:05]} ({Weaker is} 15... Qxc5 16. Qd3 $19) 16. Nf3 {[%emt 0:02:10]} Ra3 {[%emt 0:00:59]} 17. Kd2 {[%emt 0:04:13]} Qxc5 {[%emt 0:01:08]} 18. Qd4 {[%emt 0:00:18]} Qc6 {[%emt 0:04:26]} 19. Ng5 {[%emt 0:01:14]} b4 {[%emt 0:07:39]} 20. Nce4 {[%emt 0:03:17]} h6 {[%emt 0:00:31]} 21. Nxf7 {[%emt 0:00:33]} Kxf7 {[%emt 0:00:12]} 22. f5 {[%emt 0:00:12]} Ra5 {[%emt 0:03:20] aiming for ...Rd5.} 23. fxe6+ {[%emt 0:00:38]} Bxe6 {[%emt 0:01:02]} 24. Rhf1+ {[%emt 0:00:40]} Kg6 {[%emt 0:00:41]} 25. Kc1 {[%emt 0:00:32]} b3 {[%emt 0:01:13] White got outplayed after the opening.   Weighted Error Value: White=1.25/Black=0.33.  Mistake:       	White=3     	---        Inaccurate:     	White=3     	---        OK:         	White=2     	Black=6      Best:        	White=1     	Black=2      Strong:       	---       	Black=1      Brilliant:      	---       	Black=1} 0-1

[Event "40th Cappelle Open 2024"]
[Site "Cappelle-la-Grande"]
[Date "2024.03.07"]
[Round "8.14"]
[White "Degraeve, Remy"]
[Black "Houriez, Clement"]
[Result "1-0"]
[ECO "B12"]
[WhiteElo "2447"]
[BlackElo "2272"]
[Annotator "TA"]
[PlyCount "133"]
[EventDate "2024.03.02"]
[EventType "swiss"]
[EventCountry "FRA"]
[SourceTitle "playchess.com"]
[Source "ChessBase"]
[SourceQuality "1"]
[TimeControl "40/5400+30:1800+30"]

{[%evp 14,133,33,6,42,18,15,19,100,104,144,138,144,139,143,104,97,87,77,77,80,51,72,-25,101,97,104,133,114,71,79,70,73,84,79,75,85,85,117,112,103,38,39,41,47,49,39,0,37,41,30,31,83,0,0,-92,-102,-96,-96,-106,0,0,0,0,0,0,0,0,0,0,0,0,0,-8,0,0,0,0,0,0,0,0,0,0,0,0,16,16,16,16,16,16,16,16,23,23,27,31,52,60,1075,676,1037,828,1100,720,617,530,2018,2041,2058,2112,2062,2034,1970,1940,1833,1725,1690,1318,2324,2080]} 1. e4 {[%emt 0:00:04]} c6 {[%emt 0:00:07]} 2. d4 {[%emt 0:00:05]} d5 {[%emt 0:00:02]} 3. e5 {[%emt 0:00:05]} Bf5 {[%emt 0:00:05]} 4. Nf3 {[%emt 0:00:05]} e6 {[%emt 0:00:19]} 5. Be2 {[%emt 0:00:05]} Ne7 {[%emt 0:01:11]} 6. c3 {[%emt 0:00:04]} h6 {[%emt 0:00:18]} 7. O-O {[%emt 0:00:07]} Nd7 {[%emt 0:03:29]} 8. Na3 {[%emt 0:00:06]} Bh7 {[%emt 0:10:03]} 9. Nc2 {[%emt 0:01:03]} c5 {[%emt 0:06:48]} 10. dxc5 {[%emt 0:01:48]} Nc6 {[%emt 0:00:37]} (10... Nxc5 $11 11. Nfd4 a6) 11. b4 $16 {[%emt 0:03:42]} Ndxe5 {[%emt 0:05:58]} 12. Nxe5 {[%emt 0:02:24]} Nxe5 {[%emt 0:00:01][%cal Bc6e5,Be5d7,Bd7f6,Bf6e4][%mdl 32]} 13. Bb5+ {[%emt 0:02:02]} Nd7 {[%emt 0:20:48]} 14. Nd4 {[%emt 0:00:56]} Be7 {[%emt 0:05:43]} 15. Qg4 {[%emt 0:01:57][%cal Od4e6]} Kf8 {[%emt 0:02:29]} 16. Re1 {[%emt 0:06:26][%cal Oe1e6] Rxe6! ist eine echte Drohung.} Nf6 {[%emt 0:02:05]} 17. Qh3 {[%emt 0:01:37][%cal Oe1e6] Und Rxe6! würde nun gewinnen.} Ne4 {[%emt 0:04:12]} 18. Bf4 {[%emt 0:10:37]} (18. Bb2 $16) 18... Bg6 {[%emt 0:10:04]} (18... Bf6 $1 $11) 19. Qe3 {[%emt 0:03:14]} Bf6 {[%emt 0:00:40]} 20. f3 {[%emt 0:02:32]} e5 {[%emt 0:00:53]} 21. fxe4 {[%emt 0:00:04][%cal Of4e5]} exf4 {[%emt 0:01:45]} 22. Qxf4 {[%emt 0:00:39]} dxe4 {[%emt 0:00:37][%cal Oa7a6]} (22... Bxd4+ 23. cxd4 Bxe4 24. Qf1 $16) 23. Rad1 {[%emt 0:01:12][%cal Od4e6]} Qb8 {[%emt 0:00:54]} 24. Rxe4 {[%emt 0:10:07] Weiß hat aktiveres Spiel.} Bxe4 {[%emt 0:01:51]} 25. Qxe4 {[%emt 0:01:55]} Qc7 {[%emt 0:03:30] Schwarz ist schwach auf den weissen Feldern} 26. Nf5 $1 {[%emt 0:02:49][%mdl 1024] Zielt auf Re1 ab. Weiss hat starke Kompensation.} Rd8 {[%emt 0:05:13]} 27. Nd6 {[%emt 0:09:30]} (27. Re1 $1 $16 {[%cal Oe4e8] Droht Matt per Qe8+!} Kg8 (27... Bxc3 28. Qe8+ Rxe8 29. Rxe8#) 28. Ne7+ Kf8 29. Nd5) 27... b6 $14 {[%emt 0:02:36]} 28. Re1 {[%emt 0:08:32]} Qe7 {[%emt 0:00:08]} (28... bxc5 29. Qe8+ Rxe8 30. Rxe8#) 29. Qb1 {[%emt 0:00:08]} Qc7 {[%emt 0:01:45]} 30. Qe4 {[%emt 0:23:11]} (30. Qf5 $5 Bxc3 31. Bd7 $11) 30... Qe7 {[%emt 0:00:02]} (30... bxc5 31. Qe8+ Rxe8 32. Rxe8#) 31. Bc4 {[%emt 0:00:04]} Qxe4 32. Rxe4 {[%emt 0:00:07]} bxc5 {[%emt 0:11:06]} (32... Bxc3 $14 33. Bb3 bxc5 34. bxc5 f5 35. Nxf5 Re8) 33. bxc5 {[%emt 0:00:05]} (33. Nxf7 $16 Rd1+ 34. Kf2) 33... Bxc3 $11 {[%emt 0:00:27]} 34. Nxf7 {[%emt 0:02:39]} (34. Bb3 $11) 34... Rd4 $17 {[%emt 0:00:28]} 35. Rxd4 {[%emt 0:03:28]} Bxd4+ {[%emt 0:00:01][%mdl 4096] Endspiel. KRB-KBN} 36. Kf1 {[%emt 0:00:05]} Rg8 {[%emt 0:01:15]} (36... Rh7 $17 37. Nd8 Ke8 (37... Bxc5 38. Ne6+ Ke7 39. Nxc5 $16)) 37. Nd8 $11 {[%emt 0:00:59]} Bxc5 $1 {[%emt 0:00:32]} 38. Bxg8 (38. Ne6+ Ke7 39. h4 (39. Nxc5 $2 {geht unter.} Rc8 $19) 39... Bd6 $17) 38... Kxg8 {[%emt 0:00:01] KB-KN} 39. Ke2 {[%emt 0:01:07]} Bb6 {[%emt 0:00:57]} 40. Nc6 {[%emt 0:00:25]} Kf7 {[%emt 0:00:11]} 41. Kd3 {[%emt 0:30:13]} Ke6 {[%emt 0:30:15]} 42. Ke4 {[%emt 0:00:48]} h5 {[%emt 0:00:00]} 43. h3 {[%emt 0:00:00]} Kf6 {[%emt 0:00:00]} 44. Ne5 {[%emt 0:00:00]} Ke6 {[%emt 0:00:00]} 45. Nd3 {[%emt 0:00:00]} Kf6 {[%emt 0:00:00]} 46. a4 {[%emt 0:00:00]} Kg5 {[%emt 0:00:00]} 47. Ne5 {[%emt 0:00:00]} a5 {[%emt 0:00:00]} 48. Nc4 {[%emt 0:00:00]} Bd8 {[%emt 0:00:00]} 49. Nd6 {[%emt 0:00:00] Und jetzt Nf7+ wäre schön.} Bc7 {[%emt 0:00:00]} 50. Ne8 {[%emt 0:00:00][%csl LRc7,LRg7]} Bg3 {[%emt 0:00:01]} 51. Nxg7 {[%emt 0:00:00]} h4 {[%emt 0:00:07]} 52. Ne6+ {[%emt 0:00:00]} Kf6 {[%emt 0:00:05]} 53. Nd4 {[%emt 0:00:00]} Kg5 {[%emt 0:00:36]} 54. Ke3 {[%emt 0:00:00]} Bf4+ {[%emt 0:02:12]} 55. Kf3 {[%emt 0:00:00] jetzt Ne6+ und aus.} Bg3 {[%emt 0:00:11]} 56. Ke4 {[%emt 0:00:00]} Bf2 $2 {[%emt 0:01:57][%mdl 8192] [#] Verliert die Partie.} (56... Kf6 $14) 57. Nf3+ $1 $18 {[%emt 0:00:00] Weiß steht klar auf Gewinn.} Kg6 {[%emt 0:00:42] [#]} 58. Kf4 {[%emt 0:00:00] Schwarz muss nun Kg4 beachten.} Kh5 {[%emt 0:00:01]} 59. Kf5 {[%emt 0:00:00]} Bg3 {[%emt 0:00:23]} 60. Nd4 {[%emt 0:00:00]} Bh2 {[%emt 0:02:10]} 61. Ne6 {[%emt 0:00:00]} Bg3 {[%emt 0:00:19]} 62. Nf4+ {[%emt 0:00:00]} Kh6 {[%emt 0:00:01]} 63. Kg4 {[%emt 0:00:00]} Be1 {[%emt 0:01:52]} 64. Nd3 {[%emt 0:00:00]} Bg3 {[%emt 0:00:05]} 65. Nc5 {[%emt 0:00:00]} Bf2 {[%emt 0:00:10]} 66. Ne4 {[%emt 0:00:00]} Be3 {[%emt 0:00:42]} 67. Kxh4 {[%emt 0:00:00] Gewichteter Fehlerwert: Weiß=0.17 (sehr präzise) /Schwarz=0.15 (sehr präzise) .  Verlustzug:     	---       	Schwarz=1     Fehler:       	Weiß=4     	Schwarz=4     Ungenau:       	Weiß=2     	Schwarz=3     OK:         	Weiß=18    	Schwarz=14    Bester:       	Weiß=4     	Schwarz=5     Stark:        	Weiß=2     	Schwarz=1} 1-0

[Event "40th Cappelle Open 2024"]
[Site "Cappelle-la-Grande"]
[Date "2024.03.07"]
[Round "8.15"]
[White "Kanov, Nikola"]
[Black "Derige Kane, Yan"]
[Result "1-0"]
[ECO "B33"]
[WhiteElo "2424"]
[BlackElo "2230"]
[Annotator "TA"]
[PlyCount "79"]
[EventDate "2024.03.02"]
[EventType "swiss"]
[EventCountry "FRA"]
[SourceTitle "playchess.com"]
[Source "ChessBase"]
[SourceQuality "1"]
[TimeControl "40/5400+30:1800+30"]

{[%evp 26,79,30,3,9,1,2,10,10,0,1,8,10,11,10,0,6,7,44,42,109,120,112,137,156,150,191,61,54,50,37,43,106,129,115,108,265,265,265,265,265,265,265,265,29980,29982,29979,29980,29994,29995,29995,29996,29996,29995,29997,29998]} 1. e4 {[%emt 0:00:01]} c5 {[%emt 0:07:23]} 2. Nf3 {[%emt 0:00:16][%cal Bg1f3,Bf3d4,Bd4b5,Bb5a3,Ba3c2][%mdl 32]} e6 {[%emt 0:00:05][%cal Be7e6,Be6e5][%mdl 32]} 3. d4 {[%emt 0:00:26]} cxd4 {[%emt 0:00:05]} 4. Nxd4 {[%emt 0:00:10]} Nc6 {[%emt 0:00:05]} 5. Nc3 {[%emt 0:01:00]} Nf6 {[%emt 0:00:09]} 6. Ndb5 {[%emt 0:00:22]} d6 {[%emt 0:00:15]} 7. Bf4 {[%emt 0:00:29]} e5 {[%emt 0:00:07]} 8. Bg5 {[%emt 0:00:07]} a6 {[%emt 0:00:03]} 9. Na3 {[%emt 0:00:15]} b5 {[%emt 0:00:05]} 10. Nd5 {[%emt 0:00:42]} Be7 {[%emt 0:00:08]} 11. Bxf6 {[%emt 0:00:10]} Bxf6 {[%emt 0:00:05]} 12. c3 {[%emt 0:00:55]} Bg5 {[%emt 0:05:11]} 13. Nc2 {[%emt 0:00:19]} Rb8 {[%emt 0:00:30]} 14. g3 {[%emt 0:01:57]} O-O {[%emt 0:08:27]} 15. h4 {[%emt 0:00:20]} Bh6 {[%emt 0:00:34]} 16. Bh3 {[%emt 0:00:14]} Be6 {[%emt 0:01:38] The position is equal.} 17. Ncb4 {[%emt 0:01:23]} Nxb4 {[%emt 0:03:09]} 18. Nxb4 {[%emt 0:00:08]} Qb6 {[%emt 0:05:46] Prevents Nc6} 19. Bxe6 {[%emt 0:00:49]} fxe6 {[%emt 0:00:02][%csl Gf8][%cal Rb6f2]} 20. O-O {[%emt 0:00:11]} a5 {[%emt 0:06:29]} 21. Nd3 {[%emt 0:00:43]} Qc7 {[%emt 0:01:49]} 22. a4 {[%emt 0:12:02]} d5 {[%emt 0:10:56]} (22... Qc6 $14) 23. Qg4 $16 {[%emt 0:09:41]} Kh8 {[%emt 0:03:26]} 24. axb5 {[%emt 0:07:59]} (24. Qxe6 $6 dxe4 25. Qxe5 (25. Nxe5 $2 Rbe8 $19) 25... Qc6 $11) 24... Rxb5 {[%emt 0:01:12] [#]} 25. Ra4 $1 {[%emt 0:03:49]} (25. Qxe6 dxe4 26. c4 Rbb8 (26... Rb6 27. Qxe5 Qxc4 28. Qxa5 $11) 27. Qxe5 (27. Nxe5 $2 Rbe8 $19) 27... Qxc4 $17) 25... Qd6 {[%emt 0:01:05]} 26. Rfa1 {[%emt 0:16:39]} (26. Qe2 $18) 26... dxe4 $1 $14 {[%emt 0:04:04]} 27. Qxe4 {[%emt 0:01:57]} Rd5 {[%emt 0:01:57]} 28. Ne1 {[%emt 0:03:13][%cal Bd3e1,Be1f3,Bf3g5][%mdl 32]} Qb6 {[%emt 0:01:33] [#]} ({Black should play} 28... Rd2 $1 $14 29. Rxa5 (29. Nf3 Rxb2 30. R4a2 Rxa2 $14) 29... Rdxf2) 29. Nf3 $1 $16 {[%emt 0:02:45]} Qxb2 {[%emt 0:05:20]} 30. Rxa5 $40 {[%emt 0:01:14][%mdl 128] White is out for blood.} Qxc3 $2 {[%emt 0:02:02] Loses the game.} (30... Rxa5 $16 {keeps fighting.} 31. Rxa5 Qxc3) 31. Ra8 $18 {[%emt 0:01:04][%cal Ra8f8]} (31. Rxd5 $2 {perishes.} Qxa1+ 32. Kg2 exd5 $19) 31... g6 {[%emt 0:05:31]} 32. Rxf8+ {[%emt 0:11:00]} Bxf8 {[%emt 0:00:01]} 33. Ra8 {[%emt 0:00:23][%cal Of3g5] Ng5! would now be deadly.} Kg8 {[%emt 0:03:39]} 34. Ng5 {[%emt 0:05:12]} Qc6 {[%emt 0:13:37] [#]} (34... Rd7 $18 35. Rb8 (35. Nxe6 Rf7 $18) 35... Ra7) 35. Qf3 $1 {[%emt 0:02:29][%csl Ga8][%cal Rf3f8] White mates.} Rd1+ {[%emt 0:00:06]} 36. Qxd1 {[%emt 0:00:05]} Qxa8 {[%emt 0:00:07]} 37. Qd7 $1 {[%emt 0:00:14][%csl Gg5][%cal Rd7h7]} ({Not} 37. Nxe6 Qa2 38. Ng5 Be7 $14) 37... Bg7 {[%emt 0:01:02]} 38. Qxe6+ {[%emt 0:00:11]} Kh8 {[%emt 0:00:06]} 39. Nf7+ {[%emt 0:00:05]} Kg8 {[%emt 0:00:04]} 40. Nd8+ {[%emt 0:00:05] Weighted Error Value: White=0.07 (flawless) /Black=0.43.  Mistake:       	White=1     	Black=4      Inaccurate:     	---       	Black=1      OK:         	White=11    	Black=9      Best:        	White=3     	---        Strong:       	White=3     	Black=1} 1-0

[Event "40th Cappelle Open 2024"]
[Site "Cappelle-la-Grande"]
[Date "2024.03.07"]
[Round "8.16"]
[White "Eugene, Floryan"]
[Black "Zienkiewicz, Jan"]
[Result "1-0"]
[ECO "C55"]
[WhiteElo "2422"]
[BlackElo "2218"]
[Annotator "TA"]
[PlyCount "67"]
[EventDate "2024.03.02"]
[EventType "swiss"]
[EventCountry "FRA"]
[SourceTitle "playchess.com"]
[Source "ChessBase"]
[SourceQuality "1"]
[TimeControl "40/5400+30:1800+30"]

{[%evp 13,67,45,28,8,20,20,26,9,17,29,91,103,120,127,153,137,151,137,215,217,300,293,306,274,287,297,431,435,434,436,605,604,594,622,577,419,29988,29989,29989,29990,29990,29991,29991,391,29992,29993,29994,29995,29995,29996,29996,29997,29997,29997,29998,29999]} 1. e4 {[%emt 0:08:12]} e5 {[%emt 0:00:13]} 2. Nf3 {[%emt 0:00:14]} Nc6 {[%emt 0:00:13]} 3. Bc4 {[%emt 0:02:19]} Nf6 {[%emt 0:00:23][%cal Bg8f6,Bf6d5,Bd5b6][%mdl 32]} 4. d3 {[%emt 0:00:03]} Be7 {[%emt 0:00:07]} 5. O-O {[%emt 0:00:08]} O-O {[%emt 0:00:09]} 6. a4 {[%emt 0:01:36]} d5 {[%emt 0:00:07]} 7. exd5 {[%emt 0:00:04]} Nxd5 {[%emt 0:00:07]} 8. Nc3 {[%emt 0:02:04]} Nb6 {[%emt 0:02:05]} 9. Ba2 {[%emt 0:01:53][%cal Oa4a5]} Bg4 {[%emt 0:00:21][%cal Bc8g4,Bg4h5,Bh5g6,Bg6h7][%mdl 32]} 10. h3 {[%emt 0:00:37] White has an edge.} Bh5 {[%emt 0:00:23] [#]} 11. a5 $1 {[%emt 0:00:49]} Nxa5 {[%emt 0:12:22]} (11... Nd7 $11) (11... Bxf3 12. Qxf3) 12. g4 $16 {[%emt 0:02:11]} Bg6 {[%emt 0:00:36]} 13. Nxe5 {[%emt 0:00:08]} Nc6 {[%emt 0:12:55]} 14. Nxc6 {[%emt 0:06:21]} bxc6 {[%emt 0:00:18][%cal Bb7c6,Bc6c5][%mdl 32] [#]} 15. f4 $1 {[%emt 0:00:07][%cal Bf2f4,Bf4f5][%mdl 32]} h5 {[%emt 0:03:24]} (15... h6 $16 {was worth a try.} 16. f5 Bh7) 16. Qf3 {[%emt 0:02:17]} (16. gxh5 $6 Bf5 $16) 16... c5 {[%emt 0:16:11]} 17. f5 {[%emt 0:03:52]} (17. gxh5 Bf5 $16) 17... Bh7 {[%emt 0:00:15] Black is weak on the light squares} 18. Be3 {[%emt 0:01:54]} (18. gxh5 Bg5 19. Ne4 Bxc1) 18... Re8 {[%emt 0:12:02]} 19. Ne4 {[%emt 0:02:19] Hoping for g5.} (19. gxh5 $6 Bg5 $18) 19... c6 {[%emt 0:02:40]} (19... c4 {might work better.} 20. g5 (20. Bxc4 Nxc4 21. dxc4 Bh4 $18) (20. dxc4 c5 $18) (20. gxh5 Nd5 $18) 20... g6 21. dxc4 (21. Bxc4 Nxc4 22. dxc4 gxf5 $14) 21... c5) 20. g5 $18 {[%emt 0:10:15]} (20. Bxc5 Bxc5+ 21. Nxc5 Nd5 $16) (20. gxh5 Bf6 21. h6 (21. Bxc5 Nd7 $18) (21. Nxf6+ Qxf6 22. Bxc5 Nd7 $18) 21... c4 22. hxg7 (22. Bxc4 Nxc4 23. dxc4 Bxb2 $18) (22. dxc4 Qe7 $18) 22... Nd5 $18) 20... Nd5 {[%emt 0:00:22]} 21. Qxh5 {[%emt 0:00:12][%cal Og5g6] aiming for g6!} (21. Nxc5 Nxe3 (21... Bxg5 22. Bd4 $15) 22. Bxf7+ Kxf7 $11) 21... Bxf5 {[%emt 0:05:41]} 22. Rxf5 {[%emt 0:01:46]} (22. Bxc5 $2 Bxc5+ 23. Nxc5 g6 $19) 22... g6 {[%emt 0:00:02] [#]} 23. Rxd5 $1 {[%emt 0:00:12] Threatening mate with Qh6.} cxd5 {[%emt 0:01:27]} 24. Qf3 {[%emt 0:00:07]} dxe4 {[%emt 0:03:37]} (24... c4 $18) 25. Qxf7+ {[%emt 0:00:24]} Kh8 {[%emt 0:00:01]} 26. Qxg6 {[%emt 0:00:38][%cal Rg6h6]} (26. dxe4 Bxg5 27. Bf2 (27. Bxc5 Rc8 $17) 27... Qd6 $15 (27... Rxe4 28. Qxg6 Re7 29. Bf7 $11) (27... Qf6 28. Bd5 $14)) 26... Qd6 {[%emt 0:02:27]} 27. Qh5+ {[%emt 0:00:19]} (27. Qxe4 $2 Bxg5 28. Bxc5 Qxc5+ 29. d4 Rxe4 $19) 27... Kg7 {[%emt 0:00:05]} 28. Qf7+ {[%emt 0:00:05]} Kh8 {[%emt 0:00:11]} 29. Bf4 {[%emt 0:00:04] This pair of bishops is nice. White mates.} (29. dxe4 $2 {loses.} Qg3+ 30. Kf1 Rf8 $19 (30... Qxe3 31. Qh5+ Kg7 32. Qh6#)) 29... Qd4+ {[%emt 0:05:36]} 30. Kh1 {[%emt 0:00:30]} Bxg5 {[%emt 0:04:50]} 31. Qh5+ {[%emt 0:04:09]} Kg7 {[%emt 0:00:06][%cal Bh8g7,Bg7f8,Bf8e7][%mdl 32]} 32. Qxg5+ {[%emt 0:00:03]} Kf8 {[%emt 0:00:10]} 33. Qf5+ {[%emt 0:00:04]} Ke7 {[%emt 0:00:14]} 34. Qf7+ {[%emt 0:00:04] Black got outplayed after the opening.   Weighted Error Value: White=0.13 (very precise) /Black=0.62.  Mistake:       	---       	Black=3      Inaccurate:     	---       	Black=2      OK:         	White=6     	Black=4      Best:        	White=3     	Black=1      Strong:       	White=1     	---} 1-0